[Event "Titled Tuesday Blitz December 20 Late 2022"]
[White "Song, Guannan Terry"]
[Black "Tworuszka, Michal"]
[WhiteFideId "2614189"]
[BlackFideId "1117858"]
[WhiteElo "2115"]
[BlackElo "2421"]
[Result "1-0"]
[Round "01"]
[TimeControl "180+1"]
[Date "2022.12.21"]
[WhiteClock "0:00:05"]
[BlackClock "0:00:01"]

1. d4 {[%clk 0:02:53]}  Nf6 {[%clk 0:02:59]} 2. Bg5 {[%clk 0:02:53]}  Ne4 {[%clk 0:02:57]} 3. Bf4 {[%clk 0:02:53]}  d5 {[%clk 0:02:57]} 4. Nd2 {[%clk 0:02:52]}  Bf5 {[%clk 0:02:53]} 5. e3 {[%clk 0:02:52]}  Nxd2 {[%clk 0:02:52]} 6. Qxd2 {[%clk 0:02:52]}  e6 {[%clk 0:02:51]} 7. Nf3 {[%clk 0:02:53]}  Bd6 {[%clk 0:02:50]} 8. Bxd6 {[%clk 0:02:52]}  Qxd6 {[%clk 0:02:49]} 9. Bd3 {[%clk 0:02:52]}  Bxd3 {[%clk 0:02:39]} 10. cxd3 {[%clk 0:02:53]}  Nd7 {[%clk 0:02:36]} 11. O-O {[%clk 0:02:53]}  O-O {[%clk 0:02:36]} 12. b4 {[%clk 0:02:49]}  c6 {[%clk 0:02:27]} 13. a4 {[%clk 0:02:48]}  a6 {[%clk 0:02:20]} 14. Rab1 {[%clk 0:02:45]}  Rfc8 {[%clk 0:02:13]} 15. Rfc1 {[%clk 0:02:44]}  h6 {[%clk 0:02:12]} 16. h3 {[%clk 0:02:42]}  b6 {[%clk 0:01:42]} 17. Rb2 {[%clk 0:02:36]}  Rc7 {[%clk 0:01:39]} 18. Rbc2 {[%clk 0:02:32]}  Rac8 {[%clk 0:01:27]} 19. e4 {[%clk 0:02:30]}  c5 {[%clk 0:01:08]} 20. dxc5 {[%clk 0:02:27]}  bxc5 {[%clk 0:01:08]} 21. bxc5 {[%clk 0:02:19]}  Rxc5 {[%clk 0:01:07]} 22. Rxc5 {[%clk 0:01:54]}  Rxc5 {[%clk 0:01:07]} 23. exd5 {[%clk 0:01:48]}  Qxd5 {[%clk 0:00:58]} 24. Rb1 {[%clk 0:01:42]}  Rc8 {[%clk 0:00:52]} 25. Qe3 {[%clk 0:01:34]}  Qa2 {[%clk 0:00:29]} 26. Rb7 {[%clk 0:01:32]}  Qxa4 {[%clk 0:00:24]} 27. Qa7 {[%clk 0:01:28]}  Rd8 {[%clk 0:00:15]} 28. d4 {[%clk 0:01:21]}  Qc6 {[%clk 0:00:09]} 29. Rc7 {[%clk 0:01:18]}  Qd6 {[%clk 0:00:08]} 30. g3 {[%clk 0:01:06]}  e5 {[%clk 0:00:06]} 31. dxe5 {[%clk 0:00:59]}  Nxe5 {[%clk 0:00:06]} 32. Nxe5 {[%clk 0:00:59]}  Qxe5 {[%clk 0:00:06]} 33. Rxf7 {[%clk 0:00:52]}  a5 {[%clk 0:00:04]} 34. Kh2 {[%clk 0:00:37]}  Rf8 {[%clk 0:00:03]} 35. Rxf8+ {[%clk 0:00:35]}  Kxf8 {[%clk 0:00:03]} 36. h4 {[%clk 0:00:34]}  Qb5 {[%clk 0:00:01]} 37. Qa8+ {[%clk 0:00:28]}  Kf7 {[%clk 0:00:01]} 38. Qf3+ {[%clk 0:00:26]}  Kg8 {[%clk 0:00:01]} 39. Qa8+ {[%clk 0:00:14]}  Kh7 {[%clk 0:00:01]} 40. Qe4+ {[%clk 0:00:11]}  Kg8 {[%clk 0:00:01]} 41. Qe6+ {[%clk 0:00:11]}  Kh7 {[%clk 0:00:01]} 42. g4 {[%clk 0:00:08]}  a4 {[%clk 0:00:01]} 43. Qe4+ {[%clk 0:00:05]} 1-0


[Site "https://www.chess.com"]

[Event "Titled Tuesday Blitz December 20 Late 2022"]
[White "Steinberg, Nitzan"]
[Black "Karas, Marek"]
[WhiteFideId "2801795"]
[BlackFideId "14928558"]
[WhiteElo "2491"]
[BlackElo "2247"]
[Result "1-0"]
[Round "01"]
[TimeControl "180+1"]
[Date "2022.12.20"]
[WhiteClock "0:00:54"]
[BlackClock "0:00:02"]

1. e4 {[%clk 0:03:00]}  e6 {[%clk 0:02:59]} 2. d4 {[%clk 0:02:58]}  d5 {[%clk 0:03:00]} 3. Bd3 {[%clk 0:02:58]}  c5 {[%clk 0:02:56]} 4. exd5 {[%clk 0:02:55]}  exd5 {[%clk 0:02:57]} 5. Nf3 {[%clk 0:02:49]}  Nf6 {[%clk 0:02:54]} 6. O-O {[%clk 0:02:49]}  c4 {[%clk 0:02:54]} 7. Re1+ {[%clk 0:02:49]}  Be7 {[%clk 0:02:55]} 8. Bf1 {[%clk 0:02:50]}  O-O {[%clk 0:02:55]} 9. b3 {[%clk 0:02:51]}  cxb3 {[%clk 0:02:55]} 10. axb3 {[%clk 0:02:52]}  Bg4 {[%clk 0:02:55]} 11. h3 {[%clk 0:02:48]}  Bh5 {[%clk 0:02:55]} 12. g4 {[%clk 0:02:40]}  Bg6 {[%clk 0:02:54]} 13. Ne5 {[%clk 0:02:41]}  Nc6 {[%clk 0:02:52]} 14. Nxg6 {[%clk 0:02:40]}  hxg6 {[%clk 0:02:51]} 15. c3 {[%clk 0:02:40]}  Bd6 {[%clk 0:02:46]} 16. Bg2 {[%clk 0:02:30]}  Re8 {[%clk 0:02:45]} 17. Be3 {[%clk 0:02:26]}  Qd7 {[%clk 0:02:33]} 18. Nd2 {[%clk 0:02:25]}  a6 {[%clk 0:02:25]} 19. g5 {[%clk 0:02:25]}  Ne4 {[%clk 0:02:24]} 20. Nxe4 {[%clk 0:02:25]}  dxe4 {[%clk 0:02:25]} 21. Qg4 {[%clk 0:02:24]}  Qxg4 {[%clk 0:02:19]} 22. hxg4 {[%clk 0:02:24]}  Re7 {[%clk 0:02:13]} 23. b4 {[%clk 0:02:13]}  Rc8 {[%clk 0:02:07]} 24. Bd2 {[%clk 0:02:04]}  Rce8 {[%clk 0:01:47]} 25. Re2 {[%clk 0:02:04]}  f6 {[%clk 0:01:37]} 26. Rb1 {[%clk 0:01:40]}  Na7 {[%clk 0:01:24]} 27. c4 {[%clk 0:01:39]}  f5 {[%clk 0:01:19]} 28. c5 {[%clk 0:01:30]}  Bb8 {[%clk 0:01:14]} 29. gxf5 {[%clk 0:01:28]}  gxf5 {[%clk 0:01:14]} 30. d5 {[%clk 0:01:29]}  g6 {[%clk 0:01:08]} 31. d6 {[%clk 0:01:28]}  Re6 {[%clk 0:01:05]} 32. Bf4 {[%clk 0:01:27]}  Nb5 {[%clk 0:01:01]} 33. Rd2 {[%clk 0:01:27]}  Rd8 {[%clk 0:00:50]} 34. Bf1 {[%clk 0:01:26]}  Kg7 {[%clk 0:00:40]} 35. Rb3 {[%clk 0:01:19]}  Na7 {[%clk 0:00:36]} 36. Bc4 {[%clk 0:01:15]}  Ree8 {[%clk 0:00:35]} 37. Bd5 {[%clk 0:01:04]}  Rd7 {[%clk 0:00:32]} 38. Rh3 {[%clk 0:01:03]}  Nc6 {[%clk 0:00:24]} 39. Bxc6 {[%clk 0:01:01]}  bxc6 {[%clk 0:00:24]} 40. Kg2 {[%clk 0:00:59]}  a5 {[%clk 0:00:15]} 41. b5 {[%clk 0:00:56]}  cxb5 {[%clk 0:00:13]} 42. c6 {[%clk 0:00:56]}  Rf7 {[%clk 0:00:11]} 43. c7 {[%clk 0:00:53]}  Bxc7 {[%clk 0:00:08]} 44. dxc7 {[%clk 0:00:54]}  b4 {[%clk 0:00:07]} 45. Rd8 {[%clk 0:00:54]}  Rxc7 {[%clk 0:00:02]} 46. Rxe8 {[%clk 0:00:54]} 1-0


[Site "https://www.chess.com"]

[Event "Titled Tuesday Blitz December 20 Late 2022"]
[White "Sztokbant, Bernardo Vainzoff"]
[Black "Cabarkapa, Novak"]
[WhiteFideId "2115956"]
[BlackFideId "943746"]
[WhiteElo "2222"]
[BlackElo "2395"]
[Result "0-1"]
[Round "01"]
[TimeControl "180+1"]
[Date "2022.12.21"]
[WhiteClock "0:00:21"]
[BlackClock "0:01:12"]

1. d3 {[%clk 0:02:52]}  d5 {[%clk 0:02:59]} 2. Nf3 {[%clk 0:02:49]}  Nc6 {[%clk 0:02:57]} 3. g3 {[%clk 0:02:48]}  e5 {[%clk 0:02:57]} 4. Bg2 {[%clk 0:02:49]}  Be6 {[%clk 0:02:56]} 5. O-O {[%clk 0:02:50]}  f6 {[%clk 0:02:57]} 6. Nbd2 {[%clk 0:02:50]}  Qd7 {[%clk 0:02:57]} 7. c4 {[%clk 0:02:49]}  Nge7 {[%clk 0:02:53]} 8. cxd5 {[%clk 0:02:49]}  Nxd5 {[%clk 0:02:54]} 9. a3 {[%clk 0:02:49]}  Bh3 {[%clk 0:02:53]} 10. Qc2 {[%clk 0:02:46]}  h5 {[%clk 0:02:51]} 11. b4 {[%clk 0:02:42]}  h4 {[%clk 0:02:47]} 12. Nb3 {[%clk 0:02:39]}  Bxg2 {[%clk 0:02:46]} 13. Kxg2 {[%clk 0:02:39]}  hxg3 {[%clk 0:02:44]} 14. fxg3 {[%clk 0:02:40]}  Qh3+ {[%clk 0:02:43]} 15. Kf2 {[%clk 0:02:40]}  g5 {[%clk 0:02:36]} 16. b5 {[%clk 0:02:20]}  Nce7 {[%clk 0:02:36]} 17. e4 {[%clk 0:02:13]}  g4 {[%clk 0:02:36]} 18. exd5 {[%clk 0:02:13]}  gxf3 {[%clk 0:02:35]} 19. Ke1 {[%clk 0:01:34]}  Nxd5 {[%clk 0:02:33]} 20. Rxf3 {[%clk 0:01:31]}  O-O-O {[%clk 0:02:33]} 21. Rf2 {[%clk 0:01:18]}  Bb4+ {[%clk 0:02:12]} 22. axb4 {[%clk 0:01:17]}  Nxb4 {[%clk 0:02:13]} 23. Qe2 {[%clk 0:01:06]}  Nxd3+ {[%clk 0:02:13]} 24. Qxd3 {[%clk 0:00:59]}  Rxd3 {[%clk 0:02:14]} 25. Nc5 {[%clk 0:00:59]}  Rd5 {[%clk 0:02:09]} 26. Be3 {[%clk 0:00:54]}  b6 {[%clk 0:02:02]} 27. Ne4 {[%clk 0:00:46]}  Qg4 {[%clk 0:01:59]} 28. Nxf6 {[%clk 0:00:44]}  Qb4+ {[%clk 0:01:59]} 29. Kf1 {[%clk 0:00:44]}  Rd3 {[%clk 0:01:44]} 30. Rxa7 {[%clk 0:00:37]}  Qxb5 {[%clk 0:01:13]} 31. Kg1 {[%clk 0:00:27]}  Rd1+ {[%clk 0:01:13]} 32. Kg2 {[%clk 0:00:26]}  Qc6+ {[%clk 0:01:13]} 33. Rf3 {[%clk 0:00:22]}  Rxh2+ {[%clk 0:01:13]} 34. Kxh2 {[%clk 0:00:21]}  Qxf3 {[%clk 0:01:12]} 0-1


[Site "https://www.chess.com"]

[Event "Titled Tuesday Blitz December 20 Late 2022"]
[White "Taboas Rodriguez, Daniel"]
[Black "Wieczorek, Zbigniew"]
[WhiteFideId "2208466"]
[BlackFideId "1102001"]
[WhiteElo "2329"]
[BlackElo "2232"]
[Result "1-0"]
[Round "01"]
[TimeControl "180+1"]
[Date "2022.12.21"]
[WhiteClock "0:02:14"]
[BlackClock "0:01:02"]

1. d4 {[%clk 0:02:59]}  d5 {[%clk 0:02:57]} 2. Nf3 {[%clk 0:03:00]}  c6 {[%clk 0:02:58]} 3. c4 {[%clk 0:03:01]}  Nf6 {[%clk 0:02:57]} 4. cxd5 {[%clk 0:03:01]}  cxd5 {[%clk 0:02:57]} 5. Nc3 {[%clk 0:03:02]}  Nc6 {[%clk 0:02:57]} 6. Bf4 {[%clk 0:03:02]}  a6 {[%clk 0:02:56]} 7. Rc1 {[%clk 0:03:01]}  Bg4 {[%clk 0:02:55]} 8. Ne5 {[%clk 0:03:01]}  Rc8 {[%clk 0:02:50]} 9. Nxg4 {[%clk 0:02:49]}  Nxg4 {[%clk 0:02:50]} 10. e3 {[%clk 0:02:47]}  Nf6 {[%clk 0:02:50]} 11. Qb3 {[%clk 0:02:46]}  b5 {[%clk 0:02:32]} 12. Nxb5 {[%clk 0:02:31]}  axb5 {[%clk 0:01:30]} 13. Bxb5 {[%clk 0:02:32]}  Qb6 {[%clk 0:01:28]} 14. Qa4 {[%clk 0:02:29]}  Kd7 {[%clk 0:01:26]} 15. O-O {[%clk 0:02:23]}  e6 {[%clk 0:01:08]} 16. Rxc6 {[%clk 0:02:21]}  Rxc6 {[%clk 0:01:05]} 17. Rc1 {[%clk 0:02:21]}  Bd6 {[%clk 0:01:02]} 18. Rxc6 {[%clk 0:02:14]} 1-0


[Site "https://www.chess.com"]

[Event "Titled Tuesday Blitz December 20 Late 2022"]
[White "Tatarinov, Dmitry"]
[Black "Szyszylo, Rafal"]
[WhiteFideId "24160067"]
[BlackFideId "1109626"]
[WhiteElo "2326"]
[BlackElo "1981"]
[Result "1-0"]
[Round "01"]
[TimeControl "180+1"]
[Date "2022.12.21"]
[WhiteClock "0:02:24"]
[BlackClock "0:01:24"]

1. d4 {[%clk 0:03:00]}  g6 {[%clk 0:03:00]} 2. Nf3 {[%clk 0:03:01]}  Bg7 {[%clk 0:03:00]} 3. e4 {[%clk 0:03:01]}  d6 {[%clk 0:03:00]} 4. Bc4 {[%clk 0:03:01]}  Nf6 {[%clk 0:02:58]} 5. Nc3 {[%clk 0:03:00]}  O-O {[%clk 0:02:58]} 6. Bb3 {[%clk 0:03:00]}  Bg4 {[%clk 0:02:58]} 7. h3 {[%clk 0:02:57]}  Bxf3 {[%clk 0:02:58]} 8. Qxf3 {[%clk 0:02:58]}  Nc6 {[%clk 0:02:59]} 9. Be3 {[%clk 0:02:56]}  e5 {[%clk 0:02:59]} 10. dxe5 {[%clk 0:02:55]}  dxe5 {[%clk 0:02:59]} 11. Rd1 {[%clk 0:02:51]}  Nd4 {[%clk 0:02:57]} 12. Bxd4 {[%clk 0:02:50]}  exd4 {[%clk 0:02:56]} 13. O-O {[%clk 0:02:48]}  c5 {[%clk 0:02:56]} 14. Nd5 {[%clk 0:02:43]}  Nxd5 {[%clk 0:02:55]} 15. Bxd5 {[%clk 0:02:44]}  Qc7 {[%clk 0:02:38]} 16. a4 {[%clk 0:02:43]}  Rae8 {[%clk 0:02:30]} 17. b3 {[%clk 0:02:42]}  Kh8 {[%clk 0:02:27]} 18. Qd3 {[%clk 0:02:41]}  Be5 {[%clk 0:02:16]} 19. g3 {[%clk 0:02:40]}  g5 {[%clk 0:02:15]} 20. Kg2 {[%clk 0:02:40]}  Qd6 {[%clk 0:02:09]} 21. Qf3 {[%clk 0:02:38]}  f6 {[%clk 0:02:09]} 22. Rh1 {[%clk 0:02:36]}  b6 {[%clk 0:02:09]} 23. Rd3 {[%clk 0:02:34]}  Kg7 {[%clk 0:02:08]} 24. h4 {[%clk 0:02:34]}  h6 {[%clk 0:02:07]} 25. Qf5 {[%clk 0:02:34]}  Rd8 {[%clk 0:01:51]} 26. h5 {[%clk 0:02:31]}  Rh8 {[%clk 0:01:38]} 27. Rf1 {[%clk 0:02:26]}  Qd7 {[%clk 0:01:37]} 28. Qg6+ {[%clk 0:02:25]}  Kf8 {[%clk 0:01:37]} 29. f4 {[%clk 0:02:24]}  gxf4 {[%clk 0:01:36]} 30. gxf4 {[%clk 0:02:25]}  Bd6 {[%clk 0:01:24]} 31. Qxf6+ {[%clk 0:02:24]} 1-0


[Site "https://www.chess.com"]

[Event "Titled Tuesday Blitz December 20 Late 2022"]
[White "Thomforde-Toates, Noah"]
[Black "Rengifo Blancas, Renzo Jhonathan"]
[WhiteFideId "30951992"]
[BlackFideId "3807185"]
[WhiteElo "2602"]
[BlackElo "2058"]
[Result "1-0"]
[Round "01"]
[TimeControl "180+1"]
[Date "2022.12.21"]
[WhiteClock "0:01:30"]
[BlackClock "0:01:15"]

1. d4 {[%clk 0:03:00]}  d5 {[%clk 0:02:56]} 2. Nc3 {[%clk 0:03:00]}  e6 {[%clk 0:02:54]} 3. Bf4 {[%clk 0:03:00]}  Bd6 {[%clk 0:02:53]} 4. e3 {[%clk 0:03:00]}  Ne7 {[%clk 0:02:53]} 5. Nf3 {[%clk 0:02:58]}  O-O {[%clk 0:02:54]} 6. Bd3 {[%clk 0:02:57]}  Ng6 {[%clk 0:02:54]} 7. Bg3 {[%clk 0:02:57]}  f5 {[%clk 0:02:54]} 8. Qe2 {[%clk 0:02:44]}  Nc6 {[%clk 0:02:49]} 9. a3 {[%clk 0:02:43]}  a6 {[%clk 0:02:48]} 10. h4 {[%clk 0:02:33]}  Bd7 {[%clk 0:02:39]} 11. h5 {[%clk 0:02:31]}  Nh8 {[%clk 0:02:39]} 12. Bh4 {[%clk 0:02:26]}  Be7 {[%clk 0:02:39]} 13. O-O-O {[%clk 0:02:19]}  Nf7 {[%clk 0:02:37]} 14. Rdg1 {[%clk 0:02:16]}  Nh6 {[%clk 0:02:36]} 15. Bxe7 {[%clk 0:02:09]}  Qxe7 {[%clk 0:02:35]} 16. Nh2 {[%clk 0:02:10]}  b5 {[%clk 0:02:29]} 17. f4 {[%clk 0:02:07]}  b4 {[%clk 0:02:29]} 18. axb4 {[%clk 0:02:07]}  Nxb4 {[%clk 0:02:30]} 19. g4 {[%clk 0:02:06]}  Rab8 {[%clk 0:02:23]} 20. g5 {[%clk 0:01:55]}  Nf7 {[%clk 0:02:21]} 21. g6 {[%clk 0:01:55]}  Nh6 {[%clk 0:02:20]} 22. gxh7+ {[%clk 0:01:54]}  Kh8 {[%clk 0:02:08]} 23. Nf3 {[%clk 0:01:53]}  c5 {[%clk 0:01:26]} 24. Ne5 {[%clk 0:01:49]}  c4 {[%clk 0:01:26]} 25. Ng6+ {[%clk 0:01:48]}  Kxh7 {[%clk 0:01:26]} 26. Nxe7 {[%clk 0:01:48]}  cxd3 {[%clk 0:01:27]} 27. Qg2 {[%clk 0:01:47]}  Ng4 {[%clk 0:01:27]} 28. Rh4 {[%clk 0:01:43]}  dxc2 {[%clk 0:01:25]} 29. Rxg4 {[%clk 0:01:42]}  fxg4 {[%clk 0:01:24]} 30. Qxg4 {[%clk 0:01:40]}  Nd3+ {[%clk 0:01:24]} 31. Kxc2 {[%clk 0:01:36]}  Rxb2+ {[%clk 0:01:24]} 32. Kxd3 {[%clk 0:01:36]}  g5 {[%clk 0:01:15]} 33. Qxg5 {[%clk 0:01:30]} 1-0


[Site "https://www.chess.com"]

[Event "Titled Tuesday Blitz December 20 Late 2022"]
[White "Tologon tegin, Semetei"]
[Black "Tarnowska, Aleksandra"]
[WhiteFideId "13800574"]
[BlackFideId "1180967"]
[WhiteElo "2264"]
[BlackElo "1776"]
[Result "1-0"]
[Round "01"]
[TimeControl "180+1"]
[Date "2022.12.21"]
[WhiteClock "0:00:22"]
[BlackClock "0:00:07"]

1. e4 {[%clk 0:02:57]}  c5 {[%clk 0:02:57]} 2. Nf3 {[%clk 0:02:57]}  e6 {[%clk 0:02:55]} 3. d4 {[%clk 0:02:57]}  cxd4 {[%clk 0:02:55]} 4. Nxd4 {[%clk 0:02:58]}  a6 {[%clk 0:02:55]} 5. Nc3 {[%clk 0:02:57]}  Qc7 {[%clk 0:02:55]} 6. Bd3 {[%clk 0:02:55]}  Nc6 {[%clk 0:02:54]} 7. Nb3 {[%clk 0:02:54]}  Nf6 {[%clk 0:02:54]} 8. O-O {[%clk 0:02:54]}  Be7 {[%clk 0:02:54]} 9. Be3 {[%clk 0:02:51]}  O-O {[%clk 0:02:54]} 10. f4 {[%clk 0:02:48]}  d6 {[%clk 0:02:54]} 11. Qf3 {[%clk 0:02:31]}  b5 {[%clk 0:02:44]} 12. a3 {[%clk 0:02:31]}  Bb7 {[%clk 0:02:41]} 13. Qh3 {[%clk 0:02:30]}  Rfd8 {[%clk 0:02:27]} 14. Rae1 {[%clk 0:02:20]}  e5 {[%clk 0:02:10]} 15. Nd5 {[%clk 0:02:18]}  Qd7 {[%clk 0:02:01]} 16. Qf3 {[%clk 0:01:56]}  Rab8 {[%clk 0:01:09]} 17. f5 {[%clk 0:01:07]}  Re8 {[%clk 0:00:23]} 18. Nxe7+ {[%clk 0:00:56]}  Nxe7 {[%clk 0:00:21]} 19. Bg5 {[%clk 0:00:56]}  d5 {[%clk 0:00:16]} 20. Bxf6 {[%clk 0:00:41]}  gxf6 {[%clk 0:00:17]} 21. Nc5 {[%clk 0:00:27]}  Qc6 {[%clk 0:00:12]} 22. Nxb7 {[%clk 0:00:21]}  Rxb7 {[%clk 0:00:12]} 23. exd5 {[%clk 0:00:21]}  Qxd5 {[%clk 0:00:11]} 24. Be4 {[%clk 0:00:21]}  Qd4+ {[%clk 0:00:11]} 25. Kh1 {[%clk 0:00:21]}  Rc7 {[%clk 0:00:11]} 26. c3 {[%clk 0:00:22]}  Qc4 {[%clk 0:00:10]} 27. Qg3+ {[%clk 0:00:20]}  Kh8 {[%clk 0:00:11]} 28. Qh4 {[%clk 0:00:21]}  Ng8 {[%clk 0:00:08]} 29. Rf3 {[%clk 0:00:21]}  h6 {[%clk 0:00:08]} 30. Rg3 {[%clk 0:00:22]}  Kh7 {[%clk 0:00:07]} 31. Qg4 {[%clk 0:00:22]} 1-0


[Site "https://www.chess.com"]

[Event "Titled Tuesday Blitz December 20 Late 2022"]
[White "Toncheva, Nadya"]
[Black "Joubert, Dantelle"]
[WhiteFideId "2924056"]
[BlackFideId "14310813"]
[WhiteElo "2101"]
[BlackElo "1507"]
[Result "1-0"]
[Round "01"]
[TimeControl "180+1"]
[Date "2022.12.21"]
[WhiteClock "0:00:15"]
[BlackClock "0:00:02"]

1. d4 {[%clk 0:02:59]}  d5 {[%clk 0:02:59]} 2. c4 {[%clk 0:02:59]}  c6 {[%clk 0:02:57]} 3. Nc3 {[%clk 0:02:59]}  Nf6 {[%clk 0:02:57]} 4. e3 {[%clk 0:03:00]}  e6 {[%clk 0:02:57]} 5. Nf3 {[%clk 0:03:00]}  Nbd7 {[%clk 0:02:57]} 6. Bd3 {[%clk 0:03:01]}  dxc4 {[%clk 0:02:56]} 7. Bxc4 {[%clk 0:03:02]}  b5 {[%clk 0:02:57]} 8. Bd3 {[%clk 0:03:02]}  Bd6 {[%clk 0:02:56]} 9. O-O {[%clk 0:03:02]}  Bb7 {[%clk 0:02:56]} 10. Qe2 {[%clk 0:03:01]}  a6 {[%clk 0:02:55]} 11. a4 {[%clk 0:03:01]}  O-O {[%clk 0:02:54]} 12. Bd2 {[%clk 0:02:53]}  e5 {[%clk 0:02:50]} 13. dxe5 {[%clk 0:02:47]}  Nxe5 {[%clk 0:02:49]} 14. Nxe5 {[%clk 0:02:48]}  Bxe5 {[%clk 0:02:49]} 15. Rfd1 {[%clk 0:02:28]}  Qe7 {[%clk 0:02:47]} 16. Be1 {[%clk 0:02:17]}  Rfd8 {[%clk 0:02:24]} 17. h3 {[%clk 0:02:04]}  b4 {[%clk 0:02:05]} 18. Ne4 {[%clk 0:01:52]}  Nxe4 {[%clk 0:02:02]} 19. Bxe4 {[%clk 0:01:51]}  a5 {[%clk 0:01:25]} 20. Rac1 {[%clk 0:01:47]}  Qf6 {[%clk 0:01:13]} 21. b3 {[%clk 0:01:33]}  Bb2 {[%clk 0:00:56]} 22. Rc5 {[%clk 0:01:23]}  Rxd1 {[%clk 0:00:49]} 23. Qxd1 {[%clk 0:01:22]}  g6 {[%clk 0:00:28]} 24. Qc2 {[%clk 0:01:18]}  Ra6 {[%clk 0:00:21]} 25. Bf3 {[%clk 0:01:03]}  Be5 {[%clk 0:00:19]} 26. Be2 {[%clk 0:00:57]}  Ra8 {[%clk 0:00:16]} 27. f4 {[%clk 0:00:46]}  Bd6 {[%clk 0:00:15]} 28. Rc4 {[%clk 0:00:42]}  c5 {[%clk 0:00:15]} 29. Qd2 {[%clk 0:00:27]}  Qe7 {[%clk 0:00:06]} 30. Bf2 {[%clk 0:00:23]}  Re8 {[%clk 0:00:04]} 31. Rc1 {[%clk 0:00:22]}  Qe6 {[%clk 0:00:03]} 32. Bc4 {[%clk 0:00:21]}  Qe7 {[%clk 0:00:03]} 33. Rd1 {[%clk 0:00:21]}  Qe4 {[%clk 0:00:03]} 34. Bd5 {[%clk 0:00:18]}  Bxd5 {[%clk 0:00:03]} 35. Qxd5 {[%clk 0:00:19]}  Bf8 {[%clk 0:00:03]} 36. Qd3 {[%clk 0:00:16]}  Qxe3 {[%clk 0:00:02]} 37. Bxe3 {[%clk 0:00:15]} 1-0


[Site "https://www.chess.com"]

[Event "Titled Tuesday Blitz December 20 Late 2022"]
[White "UnknownMagician"]
[Black "Li, Hui"]
[BlackFideId "15400310"]
[WhiteElo "2625"]
[BlackElo "1954"]
[Result "1-0"]
[Round "01"]
[TimeControl "180+1"]
[Date "2022.12.21"]
[WhiteClock "0:00:05"]
[BlackClock "0:00:03"]

1. c4 {[%clk 0:03:00]}  e6 {[%clk 0:02:59]} 2. Nf3 {[%clk 0:03:00]}  d5 {[%clk 0:03:00]} 3. e3 {[%clk 0:03:00]}  Nf6 {[%clk 0:03:00]} 4. Nc3 {[%clk 0:03:00]}  Be7 {[%clk 0:03:00]} 5. b3 {[%clk 0:02:59]}  O-O {[%clk 0:03:00]} 6. Bb2 {[%clk 0:03:00]}  b6 {[%clk 0:02:59]} 7. cxd5 {[%clk 0:02:58]}  Nxd5 {[%clk 0:02:58]} 8. Nxd5 {[%clk 0:02:56]}  exd5 {[%clk 0:02:53]} 9. d4 {[%clk 0:02:55]}  c5 {[%clk 0:02:50]} 10. Bd3 {[%clk 0:02:53]}  Nc6 {[%clk 0:02:38]} 11. dxc5 {[%clk 0:02:51]}  Bxc5 {[%clk 0:02:30]} 12. O-O {[%clk 0:02:49]}  Bg4 {[%clk 0:02:29]} 13. h3 {[%clk 0:02:47]}  Bh5 {[%clk 0:02:29]} 14. a3 {[%clk 0:02:44]}  Be7 {[%clk 0:02:26]} 15. Rc1 {[%clk 0:02:40]}  Rc8 {[%clk 0:02:12]} 16. Be2 {[%clk 0:02:40]}  Bg6 {[%clk 0:02:02]} 17. Ba6 {[%clk 0:02:32]}  Rc7 {[%clk 0:02:02]} 18. Qe2 {[%clk 0:02:21]}  Nb8 {[%clk 0:01:54]} 19. Rxc7 {[%clk 0:02:19]}  Qxc7 {[%clk 0:01:55]} 20. Bd3 {[%clk 0:02:19]}  Nd7 {[%clk 0:01:47]} 21. Rc1 {[%clk 0:02:18]}  Qd6 {[%clk 0:01:47]} 22. b4 {[%clk 0:02:08]}  Bf6 {[%clk 0:01:42]} 23. Bxg6 {[%clk 0:02:05]}  hxg6 {[%clk 0:01:41]} 24. Nd4 {[%clk 0:02:04]}  Ne5 {[%clk 0:01:32]} 25. Nb5 {[%clk 0:02:00]}  Qb8 {[%clk 0:01:27]} 26. Rd1 {[%clk 0:01:49]}  Rd8 {[%clk 0:01:20]} 27. Nd4 {[%clk 0:01:46]}  Qb7 {[%clk 0:01:16]} 28. Nb3 {[%clk 0:01:33]}  Nc4 {[%clk 0:01:00]} 29. Bxf6 {[%clk 0:01:34]}  gxf6 {[%clk 0:01:00]} 30. Qa2 {[%clk 0:01:06]}  Kg7 {[%clk 0:00:52]} 31. Nd4 {[%clk 0:01:07]}  Rd7 {[%clk 0:00:41]} 32. a4 {[%clk 0:01:07]}  Ne5 {[%clk 0:00:39]} 33. b5 {[%clk 0:00:57]}  a6 {[%clk 0:00:35]} 34. Rc1 {[%clk 0:00:55]}  axb5 {[%clk 0:00:35]} 35. axb5 {[%clk 0:00:56]}  Rc7 {[%clk 0:00:32]} 36. Rxc7 {[%clk 0:00:54]}  Qxc7 {[%clk 0:00:33]} 37. Qxd5 {[%clk 0:00:54]}  Qc1+ {[%clk 0:00:21]} 38. Kh2 {[%clk 0:00:53]}  Qb2 {[%clk 0:00:20]} 39. f4 {[%clk 0:00:33]}  Nd3 {[%clk 0:00:13]} 40. Qd7 {[%clk 0:00:33]}  Ne1 {[%clk 0:00:10]} 41. Qg4 {[%clk 0:00:24]}  f5 {[%clk 0:00:10]} 42. Nxf5+ {[%clk 0:00:22]}  Kf6 {[%clk 0:00:10]} 43. Nd4 {[%clk 0:00:23]}  Kg7 {[%clk 0:00:08]} 44. f5 {[%clk 0:00:21]}  Qf2 {[%clk 0:00:06]} 45. fxg6 {[%clk 0:00:16]}  fxg6 {[%clk 0:00:07]} 46. Qg3 {[%clk 0:00:12]}  Qf1 {[%clk 0:00:06]} 47. Ne6+ {[%clk 0:00:10]}  Kf6 {[%clk 0:00:06]} 48. Nf4 {[%clk 0:00:11]}  g5 {[%clk 0:00:05]} 49. Nh5+ {[%clk 0:00:10]}  Kg6 {[%clk 0:00:05]} 50. Qd6+ {[%clk 0:00:06]}  Kf7 {[%clk 0:00:03]} 51. Qd7+ {[%clk 0:00:05]}  Kf8 {[%clk 0:00:03]} 52. Qg7+ {[%clk 0:00:04]}  Ke8 {[%clk 0:00:03]} 53. Nf6+ {[%clk 0:00:05]} 1-0


[Site "https://www.chess.com"]